[Event "44th Chess Olympiad Open 2022"]
[Site "Chennai"]
[Date "2022.07.29"]
[Round "1.50"]
[White "Dardha, Daniel"]
[Black "Al-Hajiri, Bader"]
[Result "1-0"]
[WhiteElo "2575"]
[BlackElo "2011"]
[Annotator "TA"]
[PlyCount "81"]
[EventDate "2022.??.??"]
[TimeControl "60"]

{[%evp 10,81,8,0,7,0,17,0,17,14,16,10,19,-25,-14,-36,-28,-41,-33,-37,64,-23,54,
50,64,64,265,264,264,256,258,261,256,264,258,229,258,263,264,268,276,268,295,
267,250,222,345,335,453,352,364,277,406,413,835,801,795,779,914,897,962,946,
29989,29990,29992,29993,29993,29994,29994,29995,29996,29997,29997,29998]} 1. c4
{[%emt 0:00:14]} Nf6 {[%emt 0:00:39]} 2. Nc3 {[%emt 0:00:22]} e6 {[%emt 0:00:
00]} 3. d4 {[%emt 0:02:16]} d5 {[%emt 0:00:23]} 4. cxd5 {[%emt 0:01:13]} exd5 {
[%emt 0:00:22]} 5. Bf4 {[%emt 0:00:15]} Bd6 {[%emt 0:02:07]} 6. Bg3 {[%emt 0:
00:00]} Qe7 {[%emt 0:02:26] D35: Queen's Gambit Declined: Exchange Variation.}
7. e3 {[%emt 0:00:29]} O-O {[%emt 0:00:39]} 8. Bd3 {[%emt 0:00:17]} c6 {
[%emt 0:02:25] The position is equal.} 9. Nge2 {[%emt 0:00:31]} Nbd7 {[%emt 0:
00:00]} 10. Qc2 {[%emt 0:00:53]} Re8 {[%emt 0:00:24] [#]} 11. O-O-O $146 {
[%emt 0:06:53]} ({Predecessor:} 11. O-O Nf8 12. a3 Ng6 13. b4 Bd7 14. Na4 Rad8
15. Nc5 Bc8 16. b5 b6 17. Na4 cxb5 18. Bxb5 {1-0 (67) Ravi,T (2455)-Patil,P 
(2167) Majitar 2019}) 11... b5 {[%emt 0:05:30]} 12. Kb1 {[%emt 0:05:32]} Nb6 {
[%emt 0:10:43]} 13. Bxd6 {[%emt 0:03:50]} Qxd6 {[%emt 0:12:53]} 14. Ng3 {
[%emt 0:00:23]} Rb8 {[%emt 0:05:44]} (14... Be6 $15) 15. Ka1 {[%emt 0:04:30]} (
15. e4 $1 $14) 15... a5 {[%emt 0:01:54]} (15... h6 $11) 16. e4 $1 $14 {[%emt 0:
00:00]} dxe4 {[%emt 0:12:58]} 17. Ncxe4 {[%emt 0:00:07]} Qxd4 {[%emt 0:06:24] 
[#] Loses the game.} (17... Nxe4 $14 18. Bxe4 Be6) 18. Nd6 $1 $18 {[%emt 0:00:
00]} Qe5 {[%emt 0:05:17] [#]} 19. f4 $1 {[%emt 0:02:22]} Qe7 {[%emt 0:01:42]}
20. Nxe8 {[%emt 0:01:07]} Qxe8 {[%emt 0:00:08]} 21. Rhe1 {[%emt 0:00:10]} Qf8 {
[%emt 0:01:20]} 22. Qxc6 {[%emt 0:03:47]} Bd7 {[%emt 0:00:00]} 23. Qc7 {
[%emt 0:02:13]} Nbd5 {[%emt 0:01:46]} 24. Qe5 {[%emt 0:00:26]} ({But not} 24.
Qxa5 Bg4 25. Rd2 (25. Bxb5 Bxd1 26. Rxd1 Ne3 $14) 25... Bd7 $18) 24... Bc6 {
[%emt 0:06:14]} 25. Ne4 {[%emt 0:09:34]} Nd7 {[%emt 0:04:56]} 26. Qg5 {[%emt 0:
01:30]} h6 {[%emt 0:05:18]} 27. Qg3 {[%emt 0:00:09]} Qb4 {[%emt 0:00:00]} (
27... a4 $142 28. Rc1 Ba8) 28. Bb1 {[%emt 0:02:20]} N5b6 {[%emt 0:00:00]} 29.
Re2 {[%emt 0:02:57] Black must now prevent Nd6.} Re8 {[%emt 0:01:17][%cal
Rc6e4]} 30. Rde1 {[%emt 0:01:29]} Na4 {[%emt 0:01:01]} (30... Nc4 $142 31. Rd1
Kf8) 31. a3 {[%emt 0:01:14]} Qd4 {[%emt 0:00:37]} (31... Qf8 $142 32. f5 Bxe4
33. Rxe4 Rxe4) 32. Rd2 {[%emt 0:01:05]} Qb6 {[%emt 0:00:26]} 33. Nd6 {[%emt 0:
04:32]} Rxe1 {[%emt 0:01:08]} 34. Qxe1 {[%emt 0:00:09] White threatens Qe8+
and mate.} Ndc5 {[%emt 0:00:04]} 35. Ba2 {[%emt 0:00:22] Threatening mate with
Qe7.} b4 {[%emt 0:01:25]} 36. Qe7 {[%emt 0:00:51] White mates.} b3 {[%emt 0:01:
06]} 37. Qxf7+ {[%emt 0:00:09]} Kh8 {[%emt 0:00:32]} 38. Qf8+ {[%emt 0:00:30]}
Kh7 {[%emt 0:00:14]} 39. Bb1+ {[%emt 0:00:06]} Ne4 {[%emt 0:00:00]} 40. Nxe4 {
[%emt 0:00:12]} Bxe4 {[%emt 0:00:10]} 41. Bxe4+ {[%emt 0:30:08] Weighted Error
Value: White=0.14 (very precise) /Black=0.57} 1-0

[Event "44th Chess Olympiad Open 2022"]
[Site "Chennai"]
[Date "2022.07.29"]
[Round "1.50"]
[White "Maerevoet, Sim"]
[Black "Hussain, Hashem"]
[Result "1-0"]
[WhiteElo "2409"]
[BlackElo "1757"]
[Annotator "ChessBase"]
[PlyCount "73"]
[EventDate "2022.??.??"]
[TimeControl "60"]

1. c4 {[%emt 0:00:04]} e5 {[%emt 0:01:23]} 2. Nc3 {[%emt 0:00:08]} Nc6 {
[%emt 0:00:18]} 3. Nf3 {[%emt 0:03:35]} Bb4 {[%emt 0:03:20]} 4. Nd5 {[%emt 0:
00:00]} Bc5 {[%emt 0:08:00]} 5. d3 {[%emt 0:03:33]} d6 {[%emt 0:06:22]} 6. e3 {
[%emt 0:04:30]} Nge7 {[%emt 0:03:44]} 7. d4 {[%emt 0:01:42]} exd4 {[%emt 0:00:
00]} 8. exd4 {[%emt 0:00:12]} Bb6 {[%emt 0:01:44]} 9. Nxb6 {[%emt 0:00:29]}
axb6 {[%emt 0:00:50]} 10. d5 {[%emt 0:03:04]} Nb8 {[%emt 0:05:25]} 11. h3 {
[%emt 0:03:57]} O-O {[%emt 0:02:26]} 12. Be2 {[%emt 0:00:18]} h6 {[%emt 0:00:
00]} 13. b3 {[%emt 0:03:40]} Bf5 {[%emt 0:07:40]} 14. Bb2 {[%emt 0:00:24]} Kh8
{[%emt 0:15:32]} 15. Qd2 {[%emt 0:04:29]} f6 {[%emt 0:02:08]} 16. Nd4 {[%emt 0:
00:00]} Bd7 {[%emt 0:01:04]} 17. O-O {[%emt 0:07:49]} Nf5 {[%emt 0:03:18]} 18.
Ne6 {[%emt 0:01:40]} Bxe6 {[%emt 0:00:27]} 19. dxe6 {[%emt 0:00:05]} Qe8 {
[%emt 0:03:56]} 20. Bd3 {[%emt 0:03:20]} Ne7 {[%emt 0:03:55]} 21. Bc2 {[%emt 0:
00:00]} Nbc6 {[%emt 0:01:56]} 22. Rfe1 {[%emt 0:00:50]} Qh5 {[%emt 0:01:31]}
23. Re3 {[%emt 0:07:11]} Ra5 {[%emt 0:03:58]} 24. b4 {[%emt 0:05:59]} Rg5 {
[%emt 0:02:16]} 25. f4 {[%emt 0:00:50]} Rg6 {[%emt 0:02:54]} 26. Bxg6 {[%emt 0:
00:00]} Qxg6 {[%emt 0:00:52]} 27. Kh2 {[%emt 0:01:19]} Qf5 {[%emt 0:00:54]} 28.
Rf1 {[%emt 0:00:55]} Ra8 {[%emt 0:03:45]} 29. a3 {[%emt 0:01:22]} Rd8 {[%emt 0:
00:00]} 30. g4 {[%emt 0:00:35]} Qh7 {[%emt 0:00:06]} 31. f5 {[%emt 0:05:42]}
Rf8 {[%emt 0:02:04]} 32. Ref3 {[%emt 0:02:08]} Qg8 {[%emt 0:01:32]} 33. h4 {
[%emt 0:00:29]} Rd8 {[%emt 0:01:35]} 34. g5 {[%emt 0:00:16]} Ne5 {[%emt 0:00:
00]} 35. gxf6 {[%emt 0:00:41]} gxf6 {[%emt 0:00:50]} 36. Qxh6+ {[%emt 0:00:12]}
Qh7 {[%emt 0:00:16]} 37. Qxf6+ {[%emt 0:00:04]} 1-0

[Event "44th Chess Olympiad Open 2022"]
[Site "Chennai"]
[Date "2022.07.29"]
[Round "1.50"]
[White "Hashem, Khaled"]
[Black "Docx, Stefan"]
[Result "0-1"]
[WhiteElo "1870"]
[BlackElo "2434"]
[Annotator "ChessBase"]
[PlyCount "54"]
[EventDate "2022.??.??"]
[TimeControl "60"]

1. d4 {[%emt 0:00:03]} Nf6 {[%emt 0:00:20]} 2. Nf3 {[%emt 0:00:24]} d5 {
[%emt 0:00:37]} 3. Bg5 {[%emt 0:00:58]} Ne4 {[%emt 0:00:15]} 4. Bf4 {[%emt 0:
00:00]} c5 {[%emt 0:00:12]} 5. e3 {[%emt 0:00:38]} Nc6 {[%emt 0:00:09]} 6. c3 {
[%emt 0:01:05]} f6 {[%emt 0:02:58]} 7. Nbd2 {[%emt 0:04:07]} g5 {[%emt 0:00:30]
} 8. Nxe4 {[%emt 0:12:21]} dxe4 {[%emt 0:03:49]} 9. Nxg5 {[%emt 0:00:11]} fxg5
{[%emt 0:00:12]} 10. Qh5+ {[%emt 0:00:09]} Kd7 {[%emt 0:00:08]} 11. dxc5 {
[%emt 0:06:27]} gxf4 {[%emt 0:06:13]} 12. O-O-O+ {[%emt 0:00:56]} Kc7 {[%emt 0:
00:00]} 13. Rxd8 {[%emt 0:00:21]} Kxd8 {[%emt 0:00:10]} 14. Bb5 {[%emt 0:08:36]
} Bg7 {[%emt 0:18:58]} 15. exf4 {[%emt 0:06:45]} Kc7 {[%emt 0:03:34]} 16. Qd5 {
[%emt 0:10:02]} Rf8 {[%emt 0:16:11]} 17. Qxe4 {[%emt 0:09:49]} Bf5 {[%emt 0:00:
00]} 18. Qa4 {[%emt 0:11:56]} Bd7 {[%emt 0:05:23]} 19. Re1 {[%emt 0:05:02]}
Rae8 {[%emt 0:03:08]} 20. g3 {[%emt 0:04:08]} a6 {[%emt 0:00:13]} 21. Bd3 {
[%emt 0:02:41]} e5 {[%emt 0:03:23]} 22. fxe5 {[%emt 0:03:35]} Rxf2 {[%emt 0:00:
00]} 23. Qd1 {[%emt 0:07:32]} Nxe5 {[%emt 0:01:10]} 24. Bxh7 {[%emt 0:00:26]}
Rxh2 {[%emt 0:06:38]} 25. Bc2 {[%emt 0:02:11]} Nc4 {[%emt 0:05:36]} 26. Rxe8 {
[%emt 0:00:56]} Bxe8 {[%emt 0:00:05]} 27. Qf1 {[%emt 0:00:19]} Rxc2+ {[%emt 0:
00:00]} 0-1

[Event "44th Chess Olympiad Open 2022"]
[Site "Chennai"]
[Date "2022.07.29"]
[Round "1.50"]
[White "Alhejab, Meshal"]
[Black "Lenaerts, Lennert"]
[Result "0-1"]
[WhiteElo "1732"]
[BlackElo "2379"]
[Annotator "TA"]
[PlyCount "65"]
[EventDate "2022.??.??"]
[TimeControl "60"]

{[%evp 11,65,8,24,1,4,-11,-14,-17,-12,-26,-32,-39,-35,-52,-37,-43,-45,-54,-73,
-76,-62,-173,-150,-171,-133,-152,-160,-199,-189,-523,-505,-484,-471,-665,-476,
-481,-479,-464,-432,-428,-428,-462,-453,-823,-821,-810,-797,-907,-899,-899,
-894,-875,-861,-810,-718,-671]} 1. e4 {[%emt 0:00:03]} c5 {[%emt 0:00:05]} 2.
Nf3 {[%emt 0:00:07]} e6 {[%emt 0:00:07]} 3. c3 {[%emt 0:00:11]} Nf6 {[%emt 0:
00:00]} 4. e5 {[%emt 0:00:39]} Nd5 {[%emt 0:00:10]} 5. d4 {[%emt 0:00:20]} cxd4
{[%emt 0:00:47]} 6. cxd4 {[%emt 0:00:23]} d6 {[%emt 0:01:24]} 7. Bb5+ {[%emt 0:
00:00] B22: Sicilian: 2 c3.} Bd7 {[%emt 0:02:08]} 8. Bxd7+ {[%emt 0:01:43]}
Nxd7 {[%emt 0:00:05]} 9. O-O {[%emt 0:01:07] The position is equal.} dxe5 {
[%emt 0:05:30]} 10. dxe5 {[%emt 0:01:01]} Be7 {[%emt 0:03:17]} 11. b3 {[%emt 0:
00:00]} O-O {[%emt 0:07:27]} 12. Bb2 {[%emt 0:00:56] [#]} Qa5 $146 {[%emt 0:00:
00]} ({Predecessor:} 12... Rc8 13. Na3 a6 14. Rc1 b5 15. Qd3 Qa5 16. Nc2 Qxa2
17. Bd4 Nc5 18. Bxc5 Rxc5 {0-1 (42) Nusrat Jahan,A (1766)-Ahmed,W (1919) Dhaka
2022}) 13. Nbd2 {[%emt 0:01:39]} Rfd8 {[%emt 0:00:32]} 14. Nc4 {[%emt 0:04:56]}
Qa6 {[%emt 0:00:42]} 15. a4 {[%emt 0:11:22]} N7b6 {[%emt 0:08:04]} 16. Nfd2 {
[%emt 0:04:06]} ({Better is} 16. Nxb6 $15 Qxb6 17. Bd4) 16... Nxc4 $19 {
[%emt 0:04:13]} 17. bxc4 {[%emt 0:08:54]} Nb6 {[%emt 0:04:14][%cal Yd5b6,Yb6c4,
Yc4d2] [#] White must now prevent ...Bb4.} 18. Qc2 {[%emt 0:09:49]} Rac8 {
[%emt 0:00:23][%cal Rb6c4]} 19. Ba3 {[%emt 0:01:40]} Nxc4 {[%emt 0:09:26]} 20.
Rfc1 $2 {[%emt 0:11:46]} (20. Bxe7 {is tougher.} Rxd2 21. Qc3) 20... Bg5 {
[%emt 0:08:09] Black is clearly winning.} (20... Rxd2 21. Qxd2 Bxa3 22. Rxa3
$17) 21. Bb4 {[%emt 0:04:06]} Rc6 {[%emt 0:03:19][%cal Rc4d2]} ({Don't blunder
} 21... Bxd2 $2 22. Bxd2 Qc6 23. Bg5 $19) ({Wrong is} 21... Qb6 $2 22. Nxc4
Qxb4 23. Rab1) 22. Ne4 {[%emt 0:07:02]} (22. Nxc4 $142 Bxc1 23. Qxc1 (23. Rxc1
$2 Qxc4 24. Qxc4 Rxc4 $19) 23... Rxc4 24. Qe1) 22... Bxc1 {[%emt 0:00:52]} 23.
Qxc1 {[%emt 0:03:10] [#]} Nd2 $1 {[%emt 0:00:19]} 24. Qd1 {[%emt 0:00:00]} Rd4
{[%emt 0:08:43]} 25. Bxd2 {[%emt 0:22:48]} Rxe4 {[%emt 0:01:53]} 26. Be3 {
[%emt 0:00:43][%cal Rd1d8]} Rc8 {[%emt 0:00:41] Prevents Qd8+.} 27. Qf3 {
[%emt 0:00:11]} (27. Ra3 $142) 27... Rxa4 {[%emt 0:00:36]} 28. Rd1 {[%emt 0:00:
58]} Ra1 {[%emt 0:00:20] Hoping for ...Rd8.} 29. h3 {[%emt 0:00:22]} Qa4 {
[%emt 0:00:08]} 30. Rxa1 {[%emt 0:00:00]} Qxa1+ {[%emt 0:00:00]} 31. Kh2 {
[%emt 0:00:00]} Qxe5+ {[%emt 0:00:00]} 32. Bf4 {[%emt 0:00:00]} Qd5 {[%emt 0:
00:00] And now ...Qxf3 would win.} 33. Qg3 {[%emt 0:00:00] White did not feel
at home in the position after the opening. Weighted Error Value: White=0.56/
Black=0.15 (very precise)} 0-1

[Event "44th Chess Olympiad Open 2022"]
[Site "Chennai"]
[Date "2022.07.29"]
[Round "1.51"]
[White "Sanchez, Sebastian Felipe"]
[Black "Naipal, Hoolan"]
[Result "1-0"]
[WhiteElo "2440"]
[BlackElo "1785"]
[Annotator "TA"]
[PlyCount "61"]
[EventDate "2022.??.??"]
[TimeControl "60"]

{[%evp 21,61,27,31,26,25,25,65,75,72,55,72,0,93,91,260,263,260,239,282,262,410,
400,429,426,633,350,337,338,316,333,325,325,304,298,321,245,1727,-720,304,-95,
29989,39]} 1. d4 {[%emt 0:00:31]} Nf6 {[%emt 0:00:24]} 2. c4 {[%emt 0:00:06]}
e6 {[%emt 0:00:26]} 3. g3 {[%emt 0:00:23]} d5 {[%emt 0:00:30]} 4. Nf3 {[%emt 0:
00:00]} Be7 {[%emt 0:01:56]} 5. Bg2 {[%emt 0:00:08]} O-O {[%emt 0:01:30]} 6.
O-O {[%emt 0:00:30]} Nbd7 {[%emt 0:19:29]} 7. Qc2 {[%emt 0:02:45]} c6 {[%emt 0:
00:00]} 8. Nbd2 {[%emt 0:00:50][%cal Yb1d2,Yd2e4,Ye4c3]} b6 {[%emt 0:00:00]} 9.
e4 {[%emt 0:02:14]} dxe4 {[%emt 0:00:25]} 10. Nxe4 {[%emt 0:00:07]} Bb7 {
[%emt 0:01:27] The main line 10...Bb7 scores better than 10...Nxe4.} 11. Rd1 {
[%emt 0:01:22]} Qc8 {[%emt 0:00:25]} 12. Nc3 {[%emt 0:09:35] E09: Closed
Catalan: Main Line: 7 Qc2 c6 8 Nbd2.} Rd8 {[%emt 0:07:40]} 13. Bf4 {[%emt 0:00:
00]} a6 {[%emt 0:03:34] [#]} 14. Re1 $146 {[%emt 0:12:42] White is slightly
better.} ({Predecessor:} 14. a4 b5 15. c5 b4 16. Ne4 Nxe4 17. Qxe4 Nf6 18. Qc2
a5 19. Rac1 h6 20. h4 {1-0 (40) Johannesson,I (2331)-Jonsson,P (2057)
Reykjavik 2012}) 14... Bf8 {[%emt 0:07:14]} 15. Rad1 {[%emt 0:00:17]} (15. Bh3
{is interesting.} Re8 16. Ne5 Nh5 17. Bd2) 15... h6 {[%emt 0:02:31]} 16. h4 {
[%emt 0:08:01] 0x0.0013b97bd56bdp-1022s more active pieces.} ({White should try
} 16. Ne5 $16) 16... b5 {[%emt 0:08:59]} (16... c5 $11 {remains equal.}) 17. c5
$1 $16 {[%emt 0:00:28]} Nd5 $2 {[%emt 0:04:50]} (17... a5 $16) 18. Nxd5 $18 {
[%emt 0:03:41]} cxd5 {[%emt 0:00:33]} 19. g4 {[%emt 0:02:25][%cal Yg3g4,Yg4g5,
Yg5g6]} Re8 {[%emt 0:02:02]} 20. g5 {[%emt 0:03:28]} h5 {[%emt 0:00:00]} (20...
e5 $142) 21. g6 {[%emt 0:05:21]} f6 {[%emt 0:02:25]} 22. Bh3 {[%emt 0:00:50]}
Qc6 {[%emt 0:03:00]} (22... f5 $142 23. Re3 Nf6) 23. Re2 {[%emt 0:10:08][%cal
Ye2e6] Hoping for Rxe6!} Bxc5 {[%emt 0:08:34]} 24. dxc5 {[%emt 0:01:10][%cal
Ye2e6] Rxe6! is the strong threat.} e5 {[%emt 0:01:21]} 25. Bg3 {[%emt 0:09:31]
} d4 {[%emt 0:00:47] [#]} 26. Bg2 {[%emt 0:00:15] Black must now prevent Ne1.}
(26. Qb3+ Kh8 27. Bg2 (27. Bxd7 Qxd7 28. Nd2 Bd5 $14) 27... Nxc5 $16) 26...
Qxc5 {[%emt 0:05:26]} 27. Qf5 {[%emt 0:06:07]} (27. Nxe5 Qxc2 28. Rxc2 Bxg2 $18
) 27... Nf8 {[%emt 0:00:47]} 28. Nxd4 {[%emt 0:00:41]} ({Much less strong is} 
28. Qxh5 $6 b4 29. Ree1 (29. Nxd4 Bxg2 30. Kxg2 Qd5+ 31. Kh2 Qd7 $18) 29...
Rad8 $18) 28... Be4 {[%emt 0:00:30]} (28... Bxg2 29. Kxg2 Qd5+ 30. Kh2 Qd8) 29.
Bf3 $4 (29. Bxe4 $18 Red8 30. Bxa8 Rxa8 31. Qxh5) 29... Bxf3 $4 {[%emt 0:00:00]
} (29... Bxf5 $19 {avoids the disaster.} 30. Bxa8 Rd8 31. Nxf5 Rxd1+ 32. Kh2
Nxg6) 30. Qxf3 $2 {[%emt 0:00:00]} (30. Nxf3 $18 {Threatens to win with Rc2.}
Red8 31. Red2 Rxd2 32. Rxd2 (32. Nxd2 Rd8 $16)) 30... Qd5 $2 {[%emt 0:01:06]}
31. Re4 $2 {[%emt 0:00:00] White used his chance. Weighted Error Value:
White=0.83/ Black=0.89} (31. Qxd5+ {mates} Kh8 {[#]} 32. Bxe5 $1 Nxg6 33. Bd6
Ne5 34. f4 a5 35. fxe5 f5 36. Nxb5) 1-0

[Event "44th Chess Olympiad Open 2022"]
[Site "Chennai"]
[Date "2022.07.29"]
[Round "1.51"]
[White "Chinasamy, Devarajen"]
[Black "Avila Pavas, Santiago"]
[Result "0-1"]
[WhiteElo "1970"]
[BlackElo "2453"]
[Annotator "TA"]
[PlyCount "88"]
[EventDate "2022.??.??"]
[TimeControl "60"]

{[%evp 9,88,-16,-6,-18,-27,-27,-25,-34,-29,-48,-27,-61,-57,-71,-68,-160,-154,
-159,-154,-152,-133,-142,-139,-163,-145,-176,-164,-175,-141,-135,-115,-156,
-154,-139,-135,-168,-181,-178,-164,-168,-147,-172,-146,-177,-168,-177,-184,
-220,-220,-213,-198,-280,-235,-251,-216,-307,-286,-393,-383,-443,-433,-465,
-465,-458,-456,-447,-447,-415,-284,-444,-430,-681,-633,-629,-596,-956,-1134,
-678,-495,-1232,-726]} 1. d4 {[%emt 0:00:03]} Nf6 {[%emt 0:00:27]} 2. Nc3 {
[%emt 0:00:10]} d5 {[%emt 0:00:45]} 3. Bf4 {[%emt 0:00:10]} a6 {[%emt 0:03:42]}
4. e3 {[%emt 0:00:53]} e6 {[%emt 0:06:40]} 5. Nf3 {[%emt 0:02:29]} b5 {[%emt 0:
00:00]} 6. a3 {[%emt 0:02:35] D00:1 d4 d5: Unusual lines.} c5 {[%emt 0:06:38]}
7. dxc5 {[%emt 0:06:43]} Bxc5 {[%emt 0:00:08]} 8. Bd3 {[%emt 0:00:38] Black
has an edge.} Bb7 {[%emt 0:02:11] [#]} 9. Ne5 $146 {[%emt 0:15:03]} ({
Predecessor:} 9. O-O O-O 10. Qe2 Nbd7 11. Rad1 Qb6 12. e4 dxe4 13. Nxe4 Nxe4
14. Bxe4 Bxe4 15. Qxe4 {½-½ (42) Lugovskoy,M (2420)-Grachev,B (2612) Chess.
com INT 2020}) 9... Bd6 {[%emt 0:12:58]} 10. Bg3 {[%emt 0:04:20]} Qc7 {[%emt 0:
00:00]} 11. f4 {[%emt 0:09:30]} Ne4 {[%emt 0:11:35]} 12. O-O {[%emt 0:22:30]} (
{White should play} 12. Qg4 $15 O-O 13. Ne2) 12... Nxg3 {[%emt 0:09:33]} (12...
Nxc3 13. bxc3 Nd7 14. Nxd7 Qxd7 15. f5 $15) 13. hxg3 {[%emt 0:00:06]} Bxe5 {
[%emt 0:00:28]} 14. fxe5 {[%emt 0:00:07]} Qxe5 {[%emt 0:04:21]} 15. Qf3 {
[%emt 0:00:42]} O-O {[%emt 0:00:22]} 16. Qf4 {[%emt 0:07:28]} Nd7 {[%emt 0:00:
00]} 17. Rae1 {[%emt 0:01:26]} Rac8 {[%emt 0:13:31]} 18. e4 {[%emt 0:05:49]}
Qxf4 {[%emt 0:01:57]} 19. gxf4 {[%emt 0:02:13]} dxe4 {[%emt 0:00:10]} 20. Bxe4
{[%emt 0:02:37]} Bxe4 {[%emt 0:00:55]} 21. Rxe4 {[%emt 0:00:18]} Nb6 {[%emt 0:
00:00] And now ...Nc4 would win.} 22. Re2 {[%emt 0:02:01]} Nc4 {[%emt 0:00:41]}
23. Nd1 {[%emt 0:00:06]} Rfd8 {[%emt 0:00:12]} 24. c3 {[%emt 0:01:30]} Rd3 {
[%emt 0:01:39]} 25. Nf2 {[%emt 0:01:06]} Rd5 {[%emt 0:00:06]} 26. Rd1 {[%emt 0:
00:00]} Rcd8 {[%emt 0:00:06]} 27. Rxd5 {[%emt 0:00:08]} Rxd5 $19 {[%emt 0:00:
00] Endgame KRN-KRN} ({And not} 27... exd5 28. Nd3 $17) 28. Ne4 {[%emt 0:01:19]
} Rd1+ {[%emt 0:04:14]} 29. Kf2 {[%emt 0:00:43]} Rb1 {[%emt 0:00:00]} 30. Nc5 {
[%emt 0:00:15]} (30. b4 $142) 30... Rxb2 {[%emt 0:04:05]} ({Don't blunder} 
30... Nxb2 $2 31. f5 $19) 31. Nxa6 {[%emt 0:05:22]} Rb3 {[%emt 0:00:14]} 32.
Nc7 {[%emt 0:00:36]} (32. a4 $142) 32... h6 {[%emt 0:01:26]} ({Wrong is} 32...
Nxa3 $2 33. f5 $19) 33. Re4 {[%emt 0:02:41]} Nxa3 {[%emt 0:00:00]} 34. Rb4 {
[%emt 0:00:19]} Rxc3 {[%emt 0:00:17]} 35. Nxb5 {[%emt 0:00:06]} Nxb5 {[%emt 0:
00:14]} 36. Rxb5 {[%emt 0:00:05] KR-KR} g6 {[%emt 0:00:45]} 37. Ra5 {[%emt 0:
00:19]} Kg7 {[%emt 0:00:08]} 38. g3 {[%emt 0:00:08]} Kf6 {[%emt 0:00:00]} 39.
Rb5 {[%emt 0:00:12]} (39. g4 $142) 39... g5 {[%emt 0:01:26] Black is clearly
winning.} 40. fxg5+ {[%emt 0:00:40]} (40. Rb7 $142) 40... hxg5 {[%emt 0:00:07]}
41. Ra5 {[%emt 0:30:16]} Kg6 {[%emt 0:30:18]} 42. Rb5 {[%emt 0:00:00]} f5 {
[%emt 0:00:15][%cal Yf7f5,Yf5f4]} 43. Rb6 {[%emt 0:00:14]} Kf6 {[%emt 0:00:07]}
44. Ra6 {[%emt 0:00:05]} (44. Rb4 $142) 44... f4 {[%emt 0:00:00] Weighted
Error Value: White=0.58/Black=0.14 (very precise)} 0-1

[Event "44th Chess Olympiad Open 2022"]
[Site "Chennai"]
[Date "2022.07.29"]
[Round "1.51"]
[White "Goorsahye, Antoine"]
[Black "Valderrama Quiceno, Esteban Alb"]
[Result "0-1"]
[WhiteElo "1783"]
[BlackElo "2436"]
[Annotator "TA"]
[PlyCount "68"]
[EventDate "2022.??.??"]
[TimeControl "60"]

{[%evp 18,68,-20,-26,0,-11,0,-32,-29,-60,-42,-54,-49,-70,-64,-62,-63,-61,-56,
-70,-79,-82,-75,-155,-126,-243,-224,-245,-245,-244,-250,-278,-281,-282,-284,
-260,-268,-479,-317,-320,-277,-306,-257,-439,-453,-599,-594,-581,-581,-1126,
-1116,-1081,-1075]} 1. Nf3 {[%emt 0:00:12]} Nf6 {[%emt 0:00:27]} 2. c4 {
[%emt 0:00:11]} c5 {[%emt 0:01:23]} 3. Nc3 {[%emt 0:00:38]} d5 {[%emt 0:02:57]}
4. cxd5 {[%emt 0:00:43]} Nxd5 {[%emt 0:00:10]} 5. g3 {[%emt 0:02:33]} Nc6 {
[%emt 0:00:36]} 6. Bg2 {[%emt 0:00:22]} Nc7 {[%emt 0:00:08]} 7. O-O {[%emt 0:
00:00]} e5 {[%emt 0:00:11]} 8. d3 {[%emt 0:00:38]} Be7 {[%emt 0:00:06]} 9. b3 {
[%emt 0:01:13]} O-O {[%emt 0:00:08]} 10. Bb2 {[%emt 0:00:09]} Rb8 {[%emt 0:00:
00] A34: Symmetrical English: 2 Nc3, lines with ...d5.} 11. Rc1 {[%emt 0:02:00]
} b6 {[%emt 0:00:34]} 12. Ne4 {[%emt 0:02:17][%cal Yc3e4,Ye4d2,Yd2c4]} f6 $1 {
[%emt 0:02:21] [#] Black is slightly better.} 13. Ned2 $146 {[%emt 0:00:00]} ({
Predecessor:} 13. a3 a5 14. e3 Bf5 15. Qc2 Ne6 16. Rfd1 Qe8 17. Nh4 Bg4 18. f3
Bh5 19. Nf5 {½-½ (68) Baker,C (2258)-Vifleemskaia,S (1926) Chess.com INT 2022
}) 13... Bb7 {[%emt 0:02:44]} 14. Nc4 {[%emt 0:00:35]} Qd7 {[%emt 0:00:00]} 15.
Qd2 {[%emt 0:04:29]} Rfe8 {[%emt 0:09:26]} 16. h4 {[%emt 0:01:40]} Bf8 {
[%emt 0:00:19]} 17. Rfd1 {[%emt 0:02:08]} Ne6 {[%emt 0:05:50]} 18. Bh3 {
[%emt 0:02:00]} Qf7 {[%emt 0:01:13] Black keeps a firm grip on the game.} 19.
Bg2 {[%emt 0:04:48]} Rbd8 {[%emt 0:00:37]} 20. Qe3 {[%emt 0:01:27]} (20. Ne1
$142) 20... Ned4 {[%emt 0:12:35]} 21. Nfd2 {[%emt 0:05:55]} (21. Bxd4 $17 cxd4
22. Qd2) 21... Nb4 {[%emt 0:01:27]} 22. Ne4 {[%emt 0:02:27]} Nxa2 {[%emt 0:00:
00]} 23. Ra1 {[%emt 0:01:53]} Nc2 {[%emt 0:00:07]} 24. Qd2 {[%emt 0:00:04]}
Nxa1 {[%emt 0:00:04]} 25. Rxa1 {[%emt 0:00:10]} Bxe4 {[%emt 0:00:09]} 26. Bxe4
{[%emt 0:00:38]} Nb4 {[%emt 0:00:03][%cal Ya2b4,Yb4c2,Yc2d4]} 27. f4 $2 {
[%emt 0:00:57] [#]} (27. g4) 27... exf4 {[%emt 0:27:34]} 28. Qxf4 {[%emt 0:00:
00]} Nc2 {[%emt 0:00:32]} 29. Rf1 {[%emt 0:02:07]} Nd4 {[%emt 0:00:03]
Inhibits Qf5.} 30. Rf2 {[%emt 0:02:07]} (30. Bxd4 cxd4 31. Qf5) 30... b5 $19 {
[%emt 0:06:52] Black is clearly winning.} 31. Ne3 {[%emt 0:02:32]} Qxb3 {
[%emt 0:00:46]} 32. Bxd4 {[%emt 0:00:55]} Rxd4 {[%emt 0:00:13]} 33. Qf5 {
[%emt 0:01:02] [#]} Rdxe4 $1 {[%emt 0:00:39]} 34. dxe4 {[%emt 0:00:18]} Qxe3 {
[%emt 0:00:11] Weighted Error Value: White=0.61/Black=0.16 (very precise)} 0-1